Cogmind - Beta 13 @@@ ROGUE MODE // 2024.06.14 @ 15:18:23 Player: Comet Result: Self-destructed Performance ------------- Evolutions (6) 3000 Regions Visited (20) 4000 Robots Destroyed (253) 1265 Value Destroyed (9817) 9817 Prototype IDs (36) 720 Alien Tech Used (1) 200 Bonus (4526) 4526 TOTAL SCORE: 23528 Bonus ------- High Alert Combat Kills 478 Follower Combat Kills 1193 Met Zhirov 300 Met Warlord at Base 500 MAIN.C Attacked Warlord 500 Warlord Defense Kills 548 Built Enhanced Grunts 300 A7 Reached Mainframe 300 Met R17 at Cetus 500 Friendly Fire -93 Cogmind --------- Core Integrity 659/1150 Matter 184/300 Energy 190/190 System Corruption 9% Temperature Cool (0) Movement Treading (345) Ox2 Location -4/Warlord Parts ------- > --- POWER (1) -------- Light Quantum Reactor > --- PROPULSION (4) --- Spiked Medium Treads Armored Medium Treads > --- UTILITY (11) ----- Advanced Cooling System Huge Storage Unit Advanced Signal Interpreter Advanced Targeting Computer Graphene Brace (fused) Improved Focal Shield Advanced Thermal Shield > --- WEAPON (3) ------- Heavy Autocannon Compact Linear Accelerator > --- INVENTORY (25) --- Reinforced Fission Core Antimatter Reactor Advanced Power Amplifier Advanced Heat Sink Advanced Heat Sink Advanced Heat Sink Advanced Heat Sink Improved Cooling System Advanced Coolant Injector Advanced Energy Well (500) Long-range Terrain Scanner Advanced Terrain Scan Processor Energy Filter Particle Accelerator Improved Transmission Jammer Improved Medium Armor Plating Layered Medium Armor Plating Layered Medium Armor Plating Advanced Focal Shield Improved Hardlight Generator Vortex Rifle (35) Vortex Rifle (35) Advanced KE Penetrator Hardcell Cannon Compact Linear Accelerator Peak State ------------ > --- POWER ------------ Light Quantum Reactor > --- PROPULSION ------- Spiked Medium Treads Armored Medium Treads Heavy Siege Treads > --- UTILITY ---------- Advanced Cooling System Advanced Coolant Injector Huge Storage Unit Advanced Signal Interpreter Advanced Targeting Computer Precision Energy Filter Hardened Heavy Armor Plating Graphene Brace Improved Focal Shield Advanced Thermal Shield > --- WEAPON ----------- Heavy Autocannon Compact Linear Accelerator > --- INVENTORY -------- Reinforced Fission Core Antimatter Reactor Advanced Power Amplifier Advanced Heat Sink Advanced Heat Sink Advanced Heat Sink Advanced Heat Sink Improved Cooling System Advanced Cooling System Advanced Energy Well Long-range Terrain Scanner Advanced Terrain Scan Processor Energy Filter Particle Accelerator Improved Transmission Jammer Improved Medium Armor Plating Layered Medium Armor Plating Layered Medium Armor Plating Advanced Focal Shield Improved Hardlight Generator Vortex Rifle Vortex Rifle Advanced KE Penetrator Hardcell Cannon Hardcell Cannon [Rating: 132] Favorites ----------- Power Improved Deuterium Engine Engine Improved Deuterium Engine Power Core Fission Core Reactor Quantum Reactor Propulsion Centrium Heavy Treads Treads Centrium Heavy Treads Leg Flexi-carbon Leg Wheel Armored Huge Wheel Utility Huge Storage Unit Device Advanced Cooling System Storage Huge Storage Unit Processor Improved Signal Interpreter Hackware Hacking Suite Protection Centrium Medium Armor Plating Weapon Plasma Cannon Energy Gun Advanced Variable Charge Gun Energy Cannon Plasma Cannon Ballistic Gun Improved Assault Rifle Ballistic Cannon Enhanced Gauss Cannon Launcher Heavy Missile Launcher Build | -11 -10 -9 -8 -7 -7 -7 -7 -6 -6 -6 -6 -5 -5 -5 -5 -4 -4 -4 -4 -4 ------- Run | Yrd Mat Mat Mat Fac Low Low Zio Pro Fac Ext Cet Fac Upp Upp Zhi Pro Fac Upp Upp War Slots Evolved 12 | . . 2 2 2 . . . . 2 . . 2 . . . . 2 . . . Power . | . . . . . . . . . . . . . . . . . . . . . Propulsion 2 | . . . . 2 . . . . . . . . . . . . . . . . Utility 9 | . . 1 2 . . . . . 2 . . 2 . . . . 2 . . . Weapon 1 | . . 1 . . . . . . . . . . . . . . . . . . Parts Attached 277 | 7 7 30 14 33 2 12 3 11 31 19 10 18 6 3 8 13 20 11 3 16 Power 15 | 1 1 2 2 1 1 . . . 1 2 1 1 . . . 1 . . 1 . Engine 9 | 1 1 2 1 1 1 . . . 1 1 . . . . . . . . . . Core 2 | . . . 1 . . . . . . 1 . . . . . . . . . . Reactor 4 | . . . . . . . . . . . 1 1 . . . 1 . . 1 . Propulsion 44 | 2 2 8 2 10 . . . . 1 3 2 1 . . . . 7 3 . 3 Treads 20 | 2 2 2 . 2 . . . . . 2 2 1 . . . . 2 3 . 2 Leg 2 | . . . . . . . . . . . . . . . . . 2 . . . Wheel 22 | . . 6 2 8 . . . . 1 1 . . . . . . 3 . . 1 Hover . | . . . . . . . . . . . . . . . . . . . . . Flight . | . . . . . . . . . . . . . . . . . . . . . Utility 110 | 1 1 5 3 10 1 6 2 7 20 7 3 11 3 1 5 4 8 7 1 4 Device 73 | . . 3 2 6 1 5 2 6 14 5 1 8 2 . 3 2 6 4 . 3 Storage 5 | 1 1 1 . 1 . . . . . . . 1 . . . . . . . . Processor 5 | . . . . 1 . . . . 1 . 1 . 1 . . . . 1 . . Hackware 7 | . . . . . . . . . 2 1 . 1 . . 1 1 1 . . . Protection 20 | . . 1 1 2 . 1 . 1 3 1 1 1 . 1 1 1 1 2 1 1 Artifact . | . . . . . . . . . . . . . . . . . . . . . Weapon 108 | 3 3 15 7 12 . 6 1 4 9 7 4 5 3 2 3 8 5 1 1 9 Energy Gun 53 | 2 1 10 6 7 . . . . 4 6 3 4 1 . 2 1 2 . 1 3 Energy Cannon 22 | . . . . 4 . 3 1 2 3 . . . 1 1 1 1 2 1 . 2 Ballistic Gun 9 | 1 2 3 . . . . . . . . 1 . . . . . . . . 2 Ballistic Cannon 6 | . . . . . . . . . . . . . . . . 3 1 . . 2 Launcher 18 | . . 2 1 1 . 3 . 2 2 1 . 1 1 1 . 3 . . . . Special Weapon . | . . . . . . . . . . . . . . . . . . . . . Impact Weapon . | . . . . . . . . . . . . . . . . . . . . . Slashing Weapon . | . . . . . . . . . . . . . . . . . . . . . Piercing Weapon . | . . . . . . . . . . . . . . . . . . . . . Special Melee Weapon . | . . . . . . . . . . . . . . . . . . . . . Unidentified Prototypes 26 | . 1 1 3 3 . 1 1 . 1 . 4 3 . . 3 1 . . . 4 Corrupted Parts 2 | . . . . . . . . . . . 2 . . . . . . . . . System Corruption 15 | . . . . . . . . . . . 15 . . . . . . . . . Parts Lost 39 | . . 1 2 2 . . . 1 3 5 . 1 1 1 . 7 8 2 1 4 Power 3 | . . . . . . . . . . 1 . . . . . 1 . . 1 . Propulsion 12 | . . 1 1 1 . . . . 1 1 . . . . . 1 3 2 . 1 Utility 19 | . . . . 1 . . . 1 2 2 . . 1 1 . 3 5 . . 3 Weapon 5 | . . . 1 . . . . . . 1 . 1 . . . 2 . . . . Highest Loss Streak 5 | . . 1 1 1 . . . 1 1 3 . 1 1 1 . 5 4 2 1 4 To Critical Strikes . | . . . . . . . . . . . . . . . . . . . . . Average Slot Usage (%) 89 | . 85 95 99 92 92 92 91 91 90 90 87 87 84 88 70 83 89 92 94 83 Engine 4 | . 14 11 7 7 7 7 7 7 6 3 . . . . . . . . . . Reactor 2 | . . . . . . . . . . . 5 5 5 5 5 4 5 5 5 5 Treads 10 | . 28 . . 1 15 15 15 15 11 7 7 10 11 11 11 9 5 10 15 15 Wheel 6 | . . 21 17 22 7 7 7 7 5 9 5 . . . . . 3 2 . . Device 17 | . . 14 27 20 15 15 14 13 10 13 13 13 12 11 7 11 22 35 31 31 Storage 6 | . 14 11 9 7 7 7 7 7 6 6 6 5 5 5 5 5 5 5 5 5 Processor 6 | . . . . . 7 7 7 7 7 6 6 8 5 11 10 5 5 6 10 10 Hackware 6 | . . . . . . . . . 13 13 13 16 17 17 20 18 13 . . . Protection 6 | . . 3 8 9 7 7 7 8 5 6 5 4 5 5 5 6 8 8 10 3 Energy Gun 9 | . 10 26 26 16 . . . . 8 19 19 16 16 11 . 10 1 5 5 4 Energy Cannon 8 | . . . . 6 23 22 23 22 11 . . . . 4 . 3 2 10 10 3 Ballistic Gun 1 | . 17 6 . . . . . . . . . . . . . . . . . 1 Naked Turns . | . . . . . . . . . . . . . . . . . . . . . Heaviest Build 177 | 11 49 103 107 120 121 125 121 132 125 121 126 127 132 132 132 137 141 150 153 177 Greatest Support 160 | 40 40 32 20 52 28 28 28 28 28 38 160 160 160 160 160 160 110 128 126 126 Greatest Overweight (x) 13 | . 1 5 10 4 4 4 4 4 4 4 4 . . . . 1 13 7 1 1 Average Overweight (x) 2 | . . 2 5 2 4 4 4 4 3 3 3 . . . . . 2 3 1 . Largest Inventory Capacity 25 | 8 20 25 25 25 25 25 25 25 25 25 25 25 25 25 25 25 25 25 25 25 Average Capacity 24 | 7 16 22 25 25 25 25 25 25 25 25 25 25 25 25 25 25 25 25 25 25 Most Carried 25 | 4 19 25 25 25 25 25 25 25 25 25 25 25 25 25 25 25 25 25 25 25 Average Carried 23 | 2 10 20 24 24 25 24 24 24 24 24 24 24 24 24 24 24 23 24 24 24 Final Capacity 25 | 8 20 25 25 25 25 25 25 25 25 25 25 25 25 25 25 25 25 25 25 25 Final Carried 25 | 4 19 25 24 25 25 25 25 25 25 25 25 24 25 24 25 23 25 25 23 25 Class Distribution -------------------- 19% | Skirmisher 18% | Tank 10% | Scavenger-Tank 9% | Hacker-Tank 9% | Scavenger-Skirmisher 8% | Derelict-Tank 6% | Hacker-Skirmisher 5% | Mutant 3% | Gunner Dominant Class ---------------- Mutant | -10/Materials Gunner | -9/Materials Tank | -8/Materials Tank | -7/Factory Skirmisher | -7/Lower Caves Skirmisher | -7/Lower Caves Skirmisher | -7/Zion Skirmisher | -6/Proximity Caves Hacker-Skirmisher | -6/Factory Scavenger-Skirmisher | -6/Extension Scavenger-Tank | -6/Cetus Scavenger-Skirmisher | -5/Factory Scavenger-Tank | -5/Upper Caves Scavenger-Tank | -5/Upper Caves Hacker-Mutant | -5/Zhirov Hacker-Tank | -4/Proximity Caves Hacker-Tank | -4/Factory Derelict-Tank | -4/Upper Caves Derelict-Tank | -4/Upper Caves Scavenger-Mutant | -4/Warlord Resources | -11 -10 -9 -8 -7 -7 -7 -7 -6 -6 -6 -6 -5 -5 -5 -5 -4 -4 -4 -4 -4 ----------- Run | Yrd Mat Mat Mat Fac Low Low Zio Pro Fac Ext Cet Fac Upp Upp Zhi Pro Fac Upp Upp War Matter Collected 5092 | 279 84 609 247 278 77 212 37 186 398 261 120 232 91 108 . 300 761 225 91 496 Remotely . | . . . . . . . . . . . . . . . . . . . . . Salvage Created 10901 | 328 301 1072 925 624 60 639 . 527 819 817 65 602 752 8 . 886 1092 630 595 159 Parts 481 | 30 24 54 65 36 2 11 . 16 32 31 . 31 21 3 . 35 53 17 15 5 Haulers Intercepted 8 | . . 1 4 1 . 1 . . . . . . . . . . 1 . . . Recyclers Shooed 6 | . 1 2 2 . . . . . . 1 . . . . . . . . . . Parts Field Recycled . | . . . . . . . . . . . . . . . . . . . . . Retrieved Matter . | . . . . . . . . . . . . . . . . . . . . . Parts Self-Destructed 83 | . . . . . . 7 3 15 . . . . 16 3 . 12 . 12 15 . Prevented 25 | . . . . . . 1 . . . . . . 3 4 . 17 . . . . Kills | -11 -10 -9 -8 -7 -7 -7 -7 -6 -6 -6 -6 -5 -5 -5 -5 -4 -4 -4 -4 -4 ------- Run | Yrd Mat Mat Mat Fac Low Low Zio Pro Fac Ext Cet Fac Upp Upp Zhi Pro Fac Upp Upp War Combat Hostiles Destroyed 186 | . 7 17 16 7 1 12 . 11 14 13 1 11 15 4 . 20 18 7 8 4 Guns 70 | . 7 14 14 3 . . . . 4 5 . 7 11 . . 2 2 1 . . Cannons 51 | . . . . 2 1 5 . 8 4 . . . . . . 5 14 2 6 4 AOE 45 | . . 3 2 . . 7 . 2 4 7 . 4 4 4 . 8 . . . . Classes Destroyed 18 | 3 3 3 2 1 1 1 . 1 . 1 . . . . . 1 . 1 . . Worker 14 | 4 2 1 . 2 . . . . . 1 . 3 . . . . 1 . . . Builder 8 | . . . 1 1 . . . . . 1 . 2 . . . . 3 . . . Tunneler 12 | 8 . . . . . . . . 1 . . . . . . . 3 . . . Hauler 8 | . . 1 4 1 . 1 . . . . . . . . . . 1 . . . Recycler 10 | 1 . 4 1 1 . . . . 1 2 . . . . . . . . . . Operator 6 | . . 1 1 1 . . . . 1 1 . 1 . . . . . . . . Drone 2 | . . . . . . . . . . . . . . . . 2 . . . . Watcher 9 | . 2 2 2 . . . . . 2 . . 1 . . . . . . . . Swarmer 37 | . 3 3 7 . . . . 3 . 4 . 3 2 4 . 6 2 . . . Grunt 87 | . 4 13 5 . . 12 . 5 10 3 . 3 6 . . 7 7 3 7 2 Brawler 6 | . . . . . . . . . . . . . 3 . . . 2 . 1 . Duelist 4 | . . . . . . . . 2 . 1 . . 1 . . . . . . . Sentry 18 | . . 1 3 3 . . . 1 1 3 . 1 2 . . 1 1 1 . . Hunter 10 | . . . 1 1 . . . . . . . 2 . . . 4 . 2 . . Programmer 17 | . . . . 3 . . . . 3 . . 2 1 . . . 6 . . 2 Behemoth 2 | . . . . . . . . . . 2 . . . . . . . . . . Cetus Guard 1 | . . . . . . . . . . . 1 . . . . . . . . . Samaritan 1 | . . . . . . 1 . . . . . . . . . . . . . . Savage 1 | . . . . . 1 . . . . . . . . . . . . . . . Mutant 1 | . . . . . . . . . . . . . . . . . . 1 . . Best Kill Streak 9 | 5 2 4 4 2 1 6 . 4 4 9 1 8 7 4 . 5 4 3 4 2 Combat Bots Only 7 | . 2 3 4 1 1 5 . 4 4 7 1 5 7 4 . 5 4 3 4 2 Max Kills in Single Turn 4 | 1 1 2 3 1 1 2 . 2 2 3 1 4 3 3 . 4 2 1 1 1 Gunslinging 1 | . . . 1 . . . . . . . . . . . . . . . . . Exploded 4 | . . 2 2 . . 2 . 2 2 3 . 2 3 3 . 4 . . . . Melee . | . . . . . . . . . . . . . . . . . . . . . Uniques/NPCs Destroyed . | . . . . . . . . . . . . . . . . . . . . . Combat | -11 -10 -9 -8 -7 -7 -7 -7 -6 -6 -6 -6 -5 -5 -5 -5 -4 -4 -4 -4 -4 -------- Run | Yrd Mat Mat Mat Fac Low Low Zio Pro Fac Ext Cet Fac Upp Upp Zhi Pro Fac Upp Upp War Hostile Shots Fired 1245 | . 27 51 46 101 21 49 . 70 74 135 2 89 39 35 . 114 140 60 46 146 Missed 398 | . 6 12 14 37 8 16 . 24 17 56 1 23 16 11 . 29 54 15 12 47 Damage Taken 14079 | . 254 494 515 600 233 494 . 666 1105 1277 64 1127 456 419 . 1759 1619 620 533 1844 Core 1322 | . 19 111 62 56 . 32 . 58 115 87 27 87 . 17 . 160 112 52 87 240 Absorbed by Shields 96 | . . . . . . . . . . 84 12 . . . . . . . . . Reduced by Siege Mode 136 | . . . . . . . . . . . . 58 5 . . 73 . . . . Ignored by Resistances 1242 | . . . . 8 38 16 . . . . . 53 22 . . . 229 269 205 402 Regen/Repaired (Parts) 1836 | . . . 160 . . . 727 . 453 . . 431 . . . . . . . 65 Core Remaining (%) 82 | 100 92 72 88 . . . . 79 . . 73 . . . . 73 . . . . Volleys Fired 561 | 29 26 54 36 31 4 34 1 23 39 39 10 34 22 8 . 47 54 24 18 28 Largest 3 | 2 2 3 3 3 3 3 1 3 3 3 3 3 3 3 . 3 3 3 3 1 Hottest 363 | 90 90 189 183 240 240 240 80 240 245 235 230 240 240 363 . 250 268 268 274 94 Shots Fired 1371 | 58 53 150 104 91 12 90 1 67 102 102 25 94 60 10 . 61 138 71 54 28 Gun 842 | 58 53 147 103 64 . . . . 49 97 25 91 58 2 . 23 25 25 18 4 Cannon 487 | . . . . 27 12 85 1 66 46 . . . . . . 31 113 46 36 24 Launcher 42 | . . 3 1 . . 5 . 1 7 5 . 3 2 8 . 7 . . . . Special . | . . . . . . . . . . . . . . . . . . . . . Kinetic 181 | 9 25 49 . . . . . . . . . . . . . . 74 . . 24 Thermal 1084 | 49 28 98 74 83 12 85 1 66 95 97 25 91 58 2 . 27 64 71 54 4 Explosive 42 | . . 3 1 . . 5 . 1 7 5 . 3 2 8 . 7 . . . . Electromagnetic 64 | . . . 29 8 . . . . . . . . . . . 27 . . . . Robot Hit Streak 17 | 7 10 12 15 14 4 9 . 13 9 16 9 12 10 . . 8 17 14 13 8 Robot Miss Streak 6 | 3 3 2 3 4 3 3 . 2 3 3 1 6 3 . . 4 3 4 3 2 Penetration Max . | . . . . . . . . . . . . . . . . . . . . . Secondary Targets 10 | . . 2 4 . . . . . . . . . 4 . . . . . . . Max Gunslinging Chain 1 | . . 1 1 . . . . . . . . . 1 . . . . . . . Shots Hit Robots 847 | 37 31 94 65 52 6 33 . 38 70 79 22 60 37 . . 37 88 45 41 12 Core Hits 431 | 15 16 31 39 21 1 30 . 17 40 41 6 36 33 2 . 31 38 14 16 4 Critical Kills 5 | . . . . 1 . . . 1 . . . . . . . . . 2 1 . Critical Parts Destroyed . | . . . . . . . . . . . . . . . . . . . . . Critical Strikes 51 | 3 . 5 1 6 . . . 1 6 10 1 . . . . 1 12 3 1 1 Burn 35 | 3 . 5 1 5 . . . . 6 10 1 . . . . . 3 1 . . Meltdown 5 | . . . . 1 . . . 1 . . . . . . . . . 2 1 . Blast 10 | . . . . . . . . . . . . . . . . . 9 . . 1 Corrupt 1 | . . . . . . . . . . . . . . . . 1 . . . . Melee Attacks . | . . . . . . . . . . . . . . . . . . . . . Impact . | . . . . . . . . . . . . . . . . . . . . . Slashing . | . . . . . . . . . . . . . . . . . . . . . Piercing . | . . . . . . . . . . . . . . . . . . . . . Sneak Attacks . | . . . . . . . . . . . . . . . . . . . . . Combat Hostiles . | . . . . . . . . . . . . . . . . . . . . . Follow-up Attacks . | . . . . . . . . . . . . . . . . . . . . . Damage Inflicted 28522 | 430 396 1702 1633 1227 157 1659 . 1182 2550 2800 492 2629 1637 566 . 2500 3265 1350 1285 1062 Guns 12654 | 430 396 1497 1342 874 . . . . 707 2001 492 1907 1021 . . 361 619 551 456 . Cannons 9268 | . . . . 353 157 792 . 1035 805 . . . . . . 894 2542 799 829 1062 Explosions 6593 | . . 205 291 . . 867 . 147 1038 799 . 715 616 566 . 1245 104 . . . Melee . | . . . . . . . . . . . . . . . . . . . . . Ramming 7 | . . . . . . . . . . . . 7 . . . . . . . . Kinetic 3325 | 43 200 463 . . . . . . . . . . . . . . 1557 . . 1062 Thermal 17240 | 387 196 1034 861 1077 157 792 . 1035 1512 2001 492 1907 1021 . . 425 1708 1350 1285 . Explosive 6382 | . . 205 184 . . 867 . 147 1038 799 . 715 616 566 . 1245 . . . . Electromagnetic 1568 | . . . 588 150 . . . . . . . . . . . 830 . . . . Impact . | . . . . . . . . . . . . . . . . . . . . . Slashing . | . . . . . . . . . . . . . . . . . . . . . Piercing . | . . . . . . . . . . . . . . . . . . . . . Highest Corruption 14 | . 2 . . 2 2 2 2 . 4 . 7 1 1 1 1 1 14 14 14 14 Average Corruption 4 | . 2 . . 1 2 2 2 . 3 . 7 1 1 1 1 1 6 14 14 6 Corruption Purged 4 | . . . . . . . . . 4 . . . . . . . . . . . Corruption Blocked . | . . . . . . . . . . . . . . . . . . . . . Effects 207 | . 8 . . 10 16 15 . . 16 . 2 5 11 2 3 8 9 60 32 10 Message Errors 55 | . 4 . . 4 7 3 . . 3 . 1 . . 2 3 1 5 13 8 1 Matter Fused 50 | . 2 . . . 2 4 . . 4 . 1 1 2 . . 3 2 16 10 3 Heat Flow Errors 28 | . . . . 1 2 3 . . 3 . . . 3 . . . . 10 5 1 Energy Discharges 17 | . . . . 1 2 2 . . 2 . . . 1 . . 1 . 6 2 . Parts Rejected 3 | . 1 . . . . . . . . . . 1 . . . . . 1 . . Parts Fused 4 | . . . . . . . . . . . . 1 . . . . . 2 1 . Data Loss (minor) 20 | . . . . 3 2 1 . . 1 . . 1 3 . . . . 5 2 2 Data Loss (major) 14 | . . . . . 1 1 . . . . . 1 2 . . 2 . 3 1 3 Misfires 10 | . 1 . . 1 . 1 . . 2 . . . . . . 1 2 1 1 . Alerts 3 | . . . . . . . . . 1 . . . . . . . . 1 1 . Weapon Failures 3 | . . . . . . . . . . . . . . . . . . 2 1 . Overload Shots 1 | . . . . . . . . . . . . . . 1 . . . . . . Overflow Damage 754 | . . 50 26 30 . 5 . 65 80 8 . 30 . 61 . 36 133 33 . 197 Projectiles 456 | . . . . 30 . 5 . 30 62 . . . . . . 12 87 33 . 197 Explosions 298 | . . 50 26 . . . . 35 18 8 . 30 . 61 . 24 46 . . . Melee . | . . . . . . . . . . . . . . . . . . . . . Knockbacks 19 | . . . . . . . . . . . . . . . . . 17 . . 2 Impact . | . . . . . . . . . . . . . . . . . . . . . Kinetic 19 | . . . . . . . . . . . . . . . . . 17 . . 2 Secondary . | . . . . . . . . . . . . . . . . . . . . . Self-Inflicted Damage 429 | . . . 96 . . . . . 126 47 . . . 55 . 105 . . . . Shots 16 | . . . 3 . . . . . 7 1 . . . 2 . 3 . . . . Rammed 1 | . . . . . . . . . . . . 1 . . . . . . . . Targets Rammed 1 | . . . . . . . . . . . . 1 . . . . . . . . Kicked . | . . . . . . . . . . . . . . . . . . . . . Crushed . | . . . . . . . . . . . . . . . . . . . . . Highest Temperature 405 | 120 222 197 190 232 302 318 . 405 289 366 36 135 123 93 . 3 . 196 198 181 Average Temperature 93 | 38 104 92 61 50 138 99 . 155 101 120 20 42 50 52 . 3 . 79 118 113 Received Heat Transfer 3516 | . 108 273 144 108 114 369 . 252 432 532 . 216 135 . . 232 159 220 204 18 Effects 6 | . 1 . . . . 4 . 1 . . . . . . . . . . . . Energy Bleed 1 | . 1 . . . . . . . . . . . . . . . . . . . Interference 3 | . . . . . . 3 . . . . . . . . . . . . . . Matter Decay 1 | . . . . . . . . 1 . . . . . . . . . . . . Damage (minor) 1 | . . . . . . 1 . . . . . . . . . . . . . . Siege Activations 6 | . . . . . . . . . . . . 2 1 . . 3 . . . . Total Turns 90 | . . . . . . . . . . . . 40 16 . . 34 . . . . Longest Duration 24 | . . . . . . . . . . . . 24 16 . . 15 . . . . Robots Corrupted 4 | . . . . . . . . . . . . . . . . 4 . . . . Combat Hostiles 4 | . . . . . . . . . . . . . . . . 4 . . . . Parts Fried 10 | . . . 3 . . . . . . . . . . . . 7 . . . . Impact Corruptions . | . . . . . . . . . . . . . . . . . . . . . Robots Melted 18 | . . . . 3 . . . 1 2 2 1 . . . . 1 2 4 2 . Combat Hostiles 16 | . . . . 2 . . . 1 2 1 1 . . . . 1 2 4 2 . Parts Melted 96 | . . 4 2 9 . 5 . 8 10 7 2 4 3 . . . 13 14 13 2 Heat Transferred 32248 | 1191 533 2627 1667 2293 300 1550 . 2050 3670 4530 977 2405 1295 . . 581 2586 2101 1892 . Parts Sabotaged . | . . . . . . . . . . . . . . . . . . . . . Parts Stolen . | . . . . . . . . . . . . . . . . . . . . . Parts Stripped . | . . . . . . . . . . . . . . . . . . . . . Power Chain Reactions 3 | . . . 3 . . . . . . . . . . . . . . . . . Alert | -11 -10 -9 -8 -7 -7 -7 -7 -6 -6 -6 -6 -5 -5 -5 -5 -4 -4 -4 -4 -4 ------- Run | Yrd Mat Mat Mat Fac Low Low Zio Pro Fac Ext Cet Fac Upp Upp Zhi Pro Fac Upp Upp War Peak Influence 867 | 60 113 345 317 135 . . . . 165 329 429 469 . . . . 867 . . . Initial 806 | . 3 19 84 105 . . . . . 49 184 128 . . . . 806 . . . Average 171 | 23 45 159 171 61 . . . . 52 119 272 256 . . . . 737 . . . Maximum Alert Level 3 | . . 1 1 . . . . . . 1 2 2 . . . . 3 . . . Low Security (%) 70 | 100 100 75 68 100 . . . . 100 83 9 21 . . . . . . . . Level 1 18 | . . 24 31 . . . . . . 16 70 61 . . . . . . . . Level 2 5 | . . . . . . . . . . . 19 16 . . . . 30 . . . Level 3 5 | . . . . . . . . . . . . . . . . . 69 . . . Level 4 . | . . . . . . . . . . . . . . . . . . . . . Level 5 . | . . . . . . . . . . . . . . . . . . . . . High Security . | . . . . . . . . . . . . . . . . . . . . . Max Security . | . . . . . . . . . . . . . . . . . . . . . Squads Dispatched 28 | . . 2 2 4 . . . . 7 1 . 9 . . . . 3 . . . Investigation 5 | . . . . . . . . . 3 . . 2 . . . . . . . . Extermination 11 | . . . . 3 . . . . 4 . . 3 . . . . 1 . . . Reinforcement 9 | . . 2 2 1 . . . . . 1 . 3 . . . . . . . . Assault 3 | . . . . . . . . . . . . 1 . . . . 2 . . . Garrison . | . . . . . . . . . . . . . . . . . . . . . Intercept . | . . . . . . . . . . . . . . . . . . . . . Searches Triggered 2 | . . . . . . . . . . . . . . . . . 2 . . . Construction Impeded 2 | . . . 1 . . . . . . . . 1 . . . . . . . . Haulers Reinforced . | . . . . . . . . . . . . . . . . . . . . . Active Scanning Responses . | . . . . . . . . . . . . . . . . . . . . . Cargo Convoy Interrupts . | . . . . . . . . . . . . . . . . . . . . . Stealth | -11 -10 -9 -8 -7 -7 -7 -7 -6 -6 -6 -6 -5 -5 -5 -5 -4 -4 -4 -4 -4 --------- Run | Yrd Mat Mat Mat Fac Low Low Zio Pro Fac Ext Cet Fac Upp Upp Zhi Pro Fac Upp Upp War Distress Signals 10 | . . 1 1 . . . . . . 2 2 3 . . . 1 . . . . Communications Jammed . | . . . . . . . . . . . . . . . . . . . . . Distress Signals . | . . . . . . . . . . . . . . . . . . . . . Times Spotted 293 | . 11 22 20 12 5 12 . 11 19 28 10 21 17 4 . 23 27 7 8 36 Peak Tracking Total 12 | . 3 4 4 2 4 5 . 4 4 6 5 6 7 4 . 5 5 3 4 12 Tactical Retreats 12 | . 2 1 . . 1 . . . . . . 1 2 . . . 1 . . 4 Traps | -11 -10 -9 -8 -7 -7 -7 -7 -6 -6 -6 -6 -5 -5 -5 -5 -4 -4 -4 -4 -4 ------- Run | Yrd Mat Mat Mat Fac Low Low Zio Pro Fac Ext Cet Fac Upp Upp Zhi Pro Fac Upp Upp War Traps Triggered 10 | . 2 . . . . . . . 3 2 . 1 . . . . 1 . . 1 Indirectly . | . . . . . . . . . . . . . . . . . . . . . Trap Hack Attempts . | . . . . . . . . . . . . . . . . . . . . . Triggered . | . . . . . . . . . . . . . . . . . . . . . Disarmed . | . . . . . . . . . . . . . . . . . . . . . Reprogrammed . | . . . . . . . . . . . . . . . . . . . . . Reused . | . . . . . . . . . . . . . . . . . . . . . Traps Extracted . | . . . . . . . . . . . . . . . . . . . . . Installed . | . . . . . . . . . . . . . . . . . . . . . Triggered 12 | . . . . . . . . . . . . . 1 4 . . . . . 7 Machines | -11 -10 -9 -8 -7 -7 -7 -7 -6 -6 -6 -6 -5 -5 -5 -5 -4 -4 -4 -4 -4 ---------- Run | Yrd Mat Mat Mat Fac Low Low Zio Pro Fac Ext Cet Fac Upp Upp Zhi Pro Fac Upp Upp War Machines Disabled 13 | . . 1 . 1 . . . . 2 . . 1 2 . . 1 4 1 . . Max in Single Turn 2 | . . 1 . 1 . . . . 1 . . . 1 . . 1 2 1 . . Machines Repaired . | . . . . . . . . . . . . . . . . . . . . . Machines Dismantled . | . . . . . . . . . . . . . . . . . . . . . Machines Sabotaged . | . . . . . . . . . . . . . . . . . . . . . Overloaded Fab Kills . | . . . . . . . . . . . . . . . . . . . . . Hacking | -11 -10 -9 -8 -7 -7 -7 -7 -6 -6 -6 -6 -5 -5 -5 -5 -4 -4 -4 -4 -4 --------- Run | Yrd Mat Mat Mat Fac Low Low Zio Pro Fac Ext Cet Fac Upp Upp Zhi Pro Fac Upp Upp War Machines Accessed 50 | . 1 3 3 3 . . . 1 9 8 1 4 . . 9 1 1 1 1 4 Terminals 26 | . 1 2 2 3 . . . 1 4 8 1 2 . . . 1 1 . . . Fabricators . | . . . . . . . . . . . . . . . . . . . . . Repair Stations 6 | . . . 1 . . . . . 3 . . 2 . . . . . . . . Recycling Units . | . . . . . . . . . . . . . . . . . . . . . Scanalyzers 1 | . . 1 . . . . . . . . . . . . . . . . . . Garrison Access 2 | . . . . . . . . . 2 . . . . . . . . . . . Total Hacks 142 | . 2 6 5 5 . . . 1 20 11 1 21 . . 48 8 1 1 1 11 Successful 107 | . 1 3 4 . . . . 1 11 8 1 8 . . 48 8 1 1 1 11 Failed 34 | . 1 3 1 5 . . . . 9 2 . 13 . . . . . . . . Catastrophic 5 | . 1 1 . . . . . . 2 . . 1 . . . . . . . . Database Lockouts 1 | . . . . . . . . . . 1 . . . . . . . . . . Manual 33 | . 2 2 3 5 . . . . 5 5 1 9 . . . . 1 . . . Terminals 52 | . 2 4 3 5 . . . 1 6 11 1 10 . . . 8 1 . . . Fabricators . | . . . . . . . . . . . . . . . . . . . . . Repair Stations 23 | . . . 2 . . . . . 10 . . 11 . . . . . . . . Recycling Units . | . . . . . . . . . . . . . . . . . . . . . Scanalyzers 2 | . . 2 . . . . . . . . . . . . . . . . . . Garrison Access 4 | . . . . . . . . . 4 . . . . . . . . . . . Terminal Hacks 86 | . 1 1 2 . . . . 1 1 7 1 2 . . 48 8 1 1 1 11 Record 57 | . . 1 . . . . . 1 . . . 1 . . 36 8 . . . 10 Part Schematic 9 | . 1 . 1 . . . . . . 2 . 1 . . 4 . . . . . Robot Analysis 4 | . . . . . . . . . . . . . . . 4 . . . . . Prototype ID Bank 4 | . . . . . . . . . . . . . . . 4 . . . . . Open Door 10 | . . . . . . . . . 1 5 1 . . . . . . 1 1 1 Branch Access Points 1 | . . . . . . . . . . . . . . . . . 1 . . . Disarm Traps 1 | . . . 1 . . . . . . . . . . . . . . . . . Fabricator Hacks . | . . . . . . . . . . . . . . . . . . . . . Repair Station Hacks 15 | . . . 2 . . . . . 8 . . 5 . . . . . . . . Scan Component 8 | . . . 1 . . . . . 4 . . 3 . . . . . . . . Repair 7 | . . . 1 . . . . . 4 . . 2 . . . . . . . . Recycling Unit Hacks . | . . . . . . . . . . . . . . . . . . . . . Scanalyzer 2 | . . 2 . . . . . . . . . . . . . . . . . . Insert Component 1 | . . 1 . . . . . . . . . . . . . . . . . . Analyze 1 | . . 1 . . . . . . . . . . . . . . . . . . Garrison Access Hacks . | . . . . . . . . . . . . . . . . . . . . . Unauthorized Hacks 4 | . . . . . . . . . 2 1 . 1 . . . . . . . . Terminals 4 | . . . . . . . . . 2 1 . 1 . . . . . . . . Assimilate 1 | . . . . . . . . . 1 . . . . . . . . . . . Botnet 3 | . . . . . . . . . 1 1 . 1 . . . . . . . . Fabricators . | . . . . . . . . . . . . . . . . . . . . . Repair Stations . | . . . . . . . . . . . . . . . . . . . . . Recycling Units . | . . . . . . . . . . . . . . . . . . . . . Scanalyzers . | . . . . . . . . . . . . . . . . . . . . . Garrison Access . | . . . . . . . . . . . . . . . . . . . . . Data Cores Recovered 1 | . . . . 1 . . . . . . . . . . . . . . . . Used 1 | . . . . 1 . . . . . . . . . . . . . . . . Hacking Detections 21 | . 1 2 1 3 . . . . 8 2 . 4 . . . . . . . . Full Trace Events 5 | . 1 . . . . . . . 3 . . 1 . . . . . . . . Feedback Events . | . . . . . . . . . . . . . . . . . . . . . Feedback Blocked . | . . . . . . . . . . . . . . . . . . . . . Robot Schematics Acquired 4 | . . . . . . . 4 . . . . . . . . . . . . . Robots Built . | . . . . . . . . . . . . . . . . . . . . . Authchips . | . . . . . . . . . . . . . . . . . . . . . Time . | . . . . . . . . . . . . . . . . . . . . . Total Robot Build Rating . | . . . . . . . . . . . . . . . . . . . . . Part Schematics Acquired 24 | . 1 1 . . . . 15 . . 2 . 1 . . 4 . . . . . Parts Built . | . . . . . . . . . . . . . . . . . . . . . Authchips . | . . . . . . . . . . . . . . . . . . . . . Time . | . . . . . . . . . . . . . . . . . . . . . Total Part Build Rating . | . . . . . . . . . . . . . . . . . . . . . Parts Repaired 7 | . . . 1 . . . . . 4 . . 2 . . . . . . . . Time 262 | . . . 32 . . . . . 122 . . 108 . . . . . . . . Parts Recycled . | . . . . . . . . . . . . . . . . . . . . . Recycled Matter . | . . . . . . . . . . . . . . . . . . . . . Retrieved Matter . | . . . . . . . . . . . . . . . . . . . . . Retrieved Components . | . . . . . . . . . . . . . . . . . . . . . Parts Scanalyzed 1 | . . 1 . . . . . . . . . . . . . . . . . . Part Schematics Acquired 1 | . . 1 . . . . . . . . . . . . . . . . . . Parts Damaged . | . . . . . . . . . . . . . . . . . . . . . Bothacking | -11 -10 -9 -8 -7 -7 -7 -7 -6 -6 -6 -6 -5 -5 -5 -5 -4 -4 -4 -4 -4 ------------ Run | Yrd Mat Mat Mat Fac Low Low Zio Pro Fac Ext Cet Fac Upp Upp Zhi Pro Fac Upp Upp War Used RIF Installer . | . . . . . . . . . . . . . . . . . . . . . Robots Hacked . | . . . . . . . . . . . . . . . . . . . . . Non-combat . | . . . . . . . . . . . . . . . . . . . . . Combat . | . . . . . . . . . . . . . . . . . . . . . Robot Hacks Applied . | . . . . . . . . . . . . . . . . . . . . . Relay Couplers Released . | . . . . . . . . . . . . . . . . . . . . . Fabnet Peak Effective % . | . . . . . . . . . . . . . . . . . . . . . Robots Rewired 17 | . . . . 1 . . . . . 14 . . 2 . . . . . . . Allies Hacked . | . . . . . . . . . . . . . . . . . . . . . Hacks Repelled . | . . . . . . . . . . . . . . . . . . . . . Allies | -11 -10 -9 -8 -7 -7 -7 -7 -6 -6 -6 -6 -5 -5 -5 -5 -4 -4 -4 -4 -4 -------- Run | Yrd Mat Mat Mat Fac Low Low Zio Pro Fac Ext Cet Fac Upp Upp Zhi Pro Fac Upp Upp War Total Allies 28 | . . . . 1 . . . . . 20 5 . 2 . . . . . . . Largest Group 11 | . . . . 1 . . . . . 10 11 9 2 . . . . . . . Highest-Rated Group 773 | . . . . 12 . . . . . 406 773 716 59 . . . . . . . Highest-Rated Ally 159 | . . . . 12 . . . . . 159 159 149 30 . . . . . . . Total Orders 8 | . . . . 1 . . . . . . . 6 . . . 1 . . . . STAY 7 | . . . . 1 . . . . . . . 6 . . . . . . . . EXPLORE 1 | . . . . . . . . . . . . . . . . 1 . . . . Ally Attacks 237 | . . . . 7 . . . . . 111 61 48 10 . . . . . . . Total Damage 6773 | . . . . 46 . . . . . 2240 2296 2027 164 . . . . . . . Kills 37 | . . . . . . . . . . 12 10 14 1 . . . . . . . Allies Corrupted 1 | . . . . . . . . . . . . 1 . . . . . . . . Allies Melted 1 | . . . . . . . . . . . . . . . . . . . . 1 Intel | -11 -10 -9 -8 -7 -7 -7 -7 -6 -6 -6 -6 -5 -5 -5 -5 -4 -4 -4 -4 -4 ------- Run | Yrd Mat Mat Mat Fac Low Low Zio Pro Fac Ext Cet Fac Upp Upp Zhi Pro Fac Upp Upp War Robot Analysis Total 4 | . . . . . . . . . . . . . . . 4 . . . . . Derelict Logs Recovered 11 | . . . . . . 1 2 1 . . . . 2 1 . 1 . 2 1 . Drone Launches 2 | . . . . . . . . . . . . . . . . 2 . . . . Drone Recoveries 1 | . . . . . . . . . . . . . . . . 1 . . . . Exploration | -11 -10 -9 -8 -7 -7 -7 -7 -6 -6 -6 -6 -5 -5 -5 -5 -4 -4 -4 -4 -4 ------------- Run | Yrd Mat Mat Mat Fac Low Low Zio Pro Fac Ext Cet Fac Upp Upp Zhi Pro Fac Upp Upp War Turns Passed 24873 | 484 883 1069 1091 1669 1250 1157 1817 1601 2103 1168 410 1595 1389 543 656 1123 900 1591 750 1624 Spaces Moved 12898 | 236 364 586 546 1174 768 614 1123 848 1060 616 213 820 799 326 391 558 294 633 260 669 Core 3 | 3 . . . . . . . . . . . . . . . . . . . . Treads 5048 | 233 364 . . . . . . . . . 41 820 799 326 391 558 191 396 260 669 Legs . | . . . . . . . . . . . . . . . . . . . . . Wheels 7847 | . . 586 546 1174 768 614 1123 848 1060 616 172 . . . . . 103 237 . . Hover . | . . . . . . . . . . . . . . . . . . . . . Flight . | . . . . . . . . . . . . . . . . . . . . . Fastest Speed 50 | 50 160 110 155 110 160 160 160 160 145 120 120 160 160 160 160 160 140 170 262 166 Average Speed 165 | 158 209 133 156 119 160 160 160 160 159 142 155 160 160 160 160 169 220 232 262 215 Slowest Speed 465 | 160 240 155 230 160 160 160 160 160 160 160 160 160 160 160 160 240 465 360 262 262 Overloaded Moves . | . . . . . . . . . . . . . . . . . . . . . Propulsion Burnouts . | . . . . . . . . . . . . . . . . . . . . . Robots Hopped . | . . . . . . . . . . . . . . . . . . . . . Cave-ins Triggered . | . . . . . . . . . . . . . . . . . . . . . Exploration Rate (%) 54 | 9 63 48 31 23 62 69 83 73 17 71 65 17 91 56 62 76 7 84 47 81 Regions Visited 20 Branch Regions 13 Pre-discovered Areas 6 | . . . . . . . . . . . . . 1 . 3 1 . 1 . . Known Exits Taken 16 | . . . . 1 1 1 1 1 1 1 1 1 1 1 1 1 1 1 1 . Unknown Exits Taken 4 | 1 1 1 1 . . . . . . . . . . . . . . . . . Scrap Searched 22 | . . . . . 2 3 3 2 . . . . 4 1 . 2 . 3 2 . Spaces Dug 25 | . . . . . . . . . . . . 3 . 9 . 13 . . . . Terrain Destroyed 533 | . . 25 19 . . 91 . 8 22 67 . 35 29 84 . 64 54 20 10 5 Melee . | . . . . . . . . . . . . . . . . . . . . . Projectile 101 | . . . . . . 4 . . . . . 11 10 1 . 8 32 20 10 5 AOE 432 | . . 25 19 . . 87 . 8 22 67 . 24 19 83 . 56 22 . . . Terrain Rammed . | . . . . . . . . . . . . . . . . . . . . . Walls Destroyed . | . . . . . . . . . . . . . . . . . . . . . Machines Disabled . | . . . . . . . . . . . . . . . . . . . . . Actions | -11 -10 -9 -8 -7 -7 -7 -7 -6 -6 -6 -6 -5 -5 -5 -5 -4 -4 -4 -4 -4 --------- Run | Yrd Mat Mat Mat Fac Low Low Zio Pro Fac Ext Cet Fac Upp Upp Zhi Pro Fac Upp Upp War Total 15315 | 287 430 754 717 1385 780 716 1144 1039 1390 821 276 1035 863 336 425 673 433 695 290 826 Wait 1108 | 12 17 54 83 63 6 43 10 151 226 51 21 142 15 . 5 46 48 19 8 88 Move 12878 | 235 363 585 545 1173 767 613 1122 847 1059 615 212 819 798 325 390 557 293 632 259 669 Hop . | . . . . . . . . . . . . . . . . . . . . . Pick Up 147 | 3 13 11 16 26 . 4 2 4 13 7 7 9 4 . 7 4 9 4 . 4 Fast Attach 115 | 7 7 5 6 14 1 2 3 . 14 6 6 6 2 . 8 3 13 2 . 10 Attach 38 | . . 4 3 5 . . . 1 3 4 . 5 . 1 . 4 4 2 2 . Detach 31 | 1 3 5 2 3 . . . . 1 2 2 2 . . 1 2 1 . 1 5 Swap 125 | . . 21 5 14 1 10 . 10 14 9 4 7 4 2 1 6 3 7 1 6 Drop 197 | . 1 15 21 41 1 6 6 3 21 10 14 10 4 . 12 4 8 3 1 16 Fire 561 | 29 26 54 36 31 4 34 1 23 39 39 10 34 22 8 . 47 54 24 18 28 Melee . | . . . . . . . . . . . . . . . . . . . . . Ram . | . . . . . . . . . . . . . . . . . . . . . Kick . | . . . . . . . . . . . . . . . . . . . . . Crush 1 | . . . . . . . . . . . . 1 . . . . . . . . Escape Stasis 16 | . . . . . . . . . . 16 . . . . . . . . . . Rewire 98 | . . . . 15 . 4 . . . 62 . . 14 . 1 . . 2 . . Trap . | . . . . . . . . . . . . . . . . . . . . . Miscellaneous . | . . . . . . . . . . . . . . . . . . . . . Route ------- -11/Scrapyard -10/Materials (discovered 3 exits: *Mat x2 / [*Min]) -9/Materials -8/Materials -7/Factory -7/Lower Caves -7/Lower Caves -7/Zion (discovered 2 exits: Dee / *Pro) -6/Proximity Caves -6/Factory (discovered 2 exits: Low / *Ext) -6/Extension (discovered 2 exits: *Fac / *Cet) -6/Cetus (discovered 2 exits: *Fac / [*Arc]) -5/Factory (discovered 2 exits: *Fac / *Upp) -5/Upper Caves -5/Upper Caves (discovered 2 exits: *Fac / *Zhi) -5/Zhirov -4/Proximity Caves -4/Factory (discovered 4 exits: Res / *Upp x2 / Arm) -4/Upper Caves -4/Upper Caves (discovered 2 exits: *Res / *War) -4/Warlord History --------- Turn | Location | Event 88 | -11/Scrapyard | Discovered new exit (range 16) 485 | -11/Scrapyard | Entered Materials 486 | -10/Materials | Build established: Mutant 776 | -10/Materials | Discovered new exit (range 3) 1084 | -10/Materials | Discovered new exit (range 6) 1144 | -10/Materials | Discovered new exit (range 16) 1368 | -10/Materials | Entered another Materials area 1368 | -9/Materials | Evolved 2 slots: Utility x1, Weapon x1 1669 | -9/Materials | Build established: Gunner 1913 | -9/Materials | Discovered new exit (range 9) 2415 | -9/Materials | Build established: Tank 2437 | -9/Materials | Entered another Materials area 2437 | -8/Materials | Evolved 2 slots: Utility x2 3226 | -8/Materials | Repaired Hrd. Light Armor Plating 3340 | -8/Materials | Discovered new exit (range 16) 3528 | -8/Materials | Entered Factory 3528 | -7/Factory | Evolved 2 slots: Propulsion x2 5100 | -7/Factory | Discovered new exit (range 5) 5195 | -7/Factory | Identified exit to Lower Caves 5197 | -7/Factory | Entered Lower Caves 5203 | -7/Lower Caves | Encountered a Warlord checkpoint 5634 | -7/Lower Caves | Spotted B-75 Beast 5737 | -7/Lower Caves | Build established: Skirmisher 5866 | -7/Lower Caves | Ambushed by wild Derelicts 6438 | -7/Lower Caves | Discovered new exit (range 7) 6446 | -7/Lower Caves | Identified exit to Lower Caves 6447 | -7/Lower Caves | Entered another Lower Caves area 6487 | -7/Lower Caves | Found Imp. Powered Armor 6525 | -7/Lower Caves | Learned Factory machine intel 6742 | -7/Lower Caves | Build established: Tank 7140 | -7/Lower Caves | Build established: Skirmisher 7591 | -7/Lower Caves | Discovered new exit (range 5) 7596 | -7/Lower Caves | Identified exit to Zion 7604 | -7/Lower Caves | Entered Zion 7688 | -7/Zion | System corruption cleaned by Quarantine Array 7842 | -7/Zion | Learned Factory emergency access door positions 7883 | -7/Zion | Learned Factory stockpile data 8108 | -7/Zion | Identified exit to Deep Caves 8157 | -7/Zion | Found Prototype Device 8157 | -7/Zion | Identified Mobile Refinery Mk. CCLXVII 8220 | -7/Zion | Acquired unknown access codes intercepted by a Zionite 8450 | -7/Zion | Visited the Megawrench Repair Shop 8450 | -7/Zion | Megawrench repaired 11 parts 9394 | -7/Zion | Discovered new exit (range 15) 9416 | -7/Zion | Identified exit to Proximity Caves 9421 | -7/Zion | Entered Proximity Caves 10143 | -6/Proximity Caves | Attracted the attention of an 0b10 checkpoint 11007 | -6/Proximity Caves | Discovered new exit (range 7) 11019 | -6/Proximity Caves | Identified exit to Factory 11022 | -6/Proximity Caves | Entered Factory 11022 | -6/Factory | Evolved 2 slots: Utility x2 11023 | -6/Factory | Identified exit to Lower Caves 11026 | -6/Factory | Loaded intel: 300 machine locations 11724 | -6/Factory | Repaired Hvy. Missile Launcher 11792 | -6/Factory | Build established: Hacker-Gunner 12081 | -6/Factory | Discovered new exit (range 6) 12086 | -6/Factory | Identified exit to Extension 12430 | -6/Factory | Build established: Hacker-Skirmisher 12631 | -6/Factory | Repaired Imp. Powered Armor 12758 | -6/Factory | Repaired Arm. Huge Wheel 12880 | -6/Factory | Repaired Imp. Powered Armor 13125 | -6/Factory | Entered Extension 13177 | -6/Extension | Rescued a captive Derelict 13316 | -6/Extension | Rescued a captive Derelict 13317 | -6/Extension | Rescued a captive Derelict 13490 | -6/Extension | Rescued a captive Derelict 13603 | -6/Extension | Lost 3 allies 13636 | -6/Extension | Spotted B-75 Beast 13653 | -6/Extension | Spotted B-75 Beast 13687 | -6/Extension | Destroyed B-75 Beast 13688 | -6/Extension | Lost 3 allies 13711 | -6/Extension | Destroyed B-75 Beast 13724 | -6/Extension | Lost 3 parts (1p1n1w) 13824 | -6/Extension | Rescued a captive Derelict 13934 | -6/Extension | Destroyed 7 combat bots 14049 | -6/Extension | Rescued A7 14050 | -6/Extension | Disrupted transfer network 14115 | -6/Extension | Build established: Scavenger-Skirmisher 14223 | -6/Extension | Central database locked down 14256 | -6/Extension | Discovered new exit (range 10) 14257 | -6/Extension | Discovered new exit (range 6) 14283 | -6/Extension | Identified exit to Cetus 14287 | -6/Extension | Identified exit to Factory 14293 | -6/Extension | Entered Cetus 14293 | -6/Cetus | Accompanied by 10 allies (A7) 14298 | -6/Cetus | Acquired a Cetus Manufacturing Module code from A7 14311 | -6/Cetus | Spotted Cetus Guard 14311 | -6/Cetus | Spotted Cetus Guard 14315 | -6/Cetus | Spotted Cetus Guard 14325 | -6/Cetus | Allies destroyed Cetus Guard 14326 | -6/Cetus | Spotted Cetus Guard 14326 | -6/Cetus | Allies destroyed Cetus Guard 14332 | -6/Cetus | Allies destroyed Cetus Guard 14337 | -6/Cetus | Destroyed Cetus Guard 14357 | -6/Cetus | Lost 4 allies 14416 | -6/Cetus | Started Cetus Manufacturing Module 14440 | -6/Cetus | Escorted A7 to Cetus Mainframe 14441 | -6/Cetus | Manufactured an Enhanced Grunt 14466 | -6/Cetus | Manufactured an Enhanced Grunt 14491 | -6/Cetus | Manufactured an Enhanced Grunt 14516 | -6/Cetus | Manufactured an Enhanced Grunt 14541 | -6/Cetus | Manufactured an Enhanced Grunt 14564 | -6/Cetus | Discovered new exit (range 15) 14595 | -6/Cetus | Spotted Cetus Guard 14595 | -6/Cetus | Spotted Cetus Guard 14597 | -6/Cetus | Spotted Cetus Guard 14598 | -6/Cetus | Spotted Cetus Guard 14605 | -6/Cetus | Allies destroyed Cetus Guard 14610 | -6/Cetus | Discovered exit to Factory (range 16) 14612 | -6/Cetus | Allies destroyed Cetus Guard 14613 | -6/Cetus | Allies destroyed Cetus Guard 14613 | -6/Cetus | Allies destroyed Cetus Guard 14631 | -6/Cetus | Met Revision 17 14703 | -6/Cetus | Entered Factory 14703 | -5/Factory | Accompanied by 9 allies (A7) 14703 | -5/Factory | Evolved 2 slots: Utility x2 14708 | -5/Factory | Received a hacking code to weaken MAIN.C 14776 | -5/Factory | Discovered new exit (range 13) 14795 | -5/Factory | Identified exit to Upper Caves 14873 | -5/Factory | Repaired Centrium Heavy Treads 15645 | -5/Factory | Discovered new exit (range 15) 15667 | -5/Factory | Identified exit to Factory 15900 | -5/Factory | Repaired Centrium Medium Armor Plating 16246 | -5/Factory | First assault squad dispatched 16298 | -5/Factory | Entered Upper Caves 16300 | -5/Upper Caves | Attracted the attention of an 0b10 outpost 16348 | -5/Upper Caves | Destroyed 7 combat bots 16702 | -5/Upper Caves | Attracted the attention of an 0b10 checkpoint 16762 | -5/Upper Caves | Learned 8 Factory zone layouts 16920 | -5/Upper Caves | Learned location of Armory (-4) 16989 | -5/Upper Caves | Build established: Scavenger-Tank 17574 | -5/Upper Caves | Discovered new exit (range 15) 17597 | -5/Upper Caves | Identified exit to Upper Caves 17687 | -5/Upper Caves | Entered another Upper Caves area 17739 | -5/Upper Caves | Discovered exit to Factory (range 11) 17986 | -5/Upper Caves | Learned 4 Factory zone layouts 18149 | -5/Upper Caves | Discovered new exit (range 8) 18158 | -5/Upper Caves | Identified exit to Zhirov 18230 | -5/Upper Caves | Entered Zhirov 18230 | -5/Zhirov | Discovered new exit (range 3) 18235 | -5/Zhirov | Identified exit to Proximity Caves 18261 | -5/Zhirov | Met Zhirov 18302 | -5/Zhirov | Learned location of Quarantine (-2) 18302 | -5/Zhirov | Learned location of Testing (-3) 18302 | -5/Zhirov | Learned location of Command (-1) 18335 | -5/Zhirov | Zhirov requested help retrieving the SGEMP Prototype 18369 | -5/Zhirov | Found Alien Artifact 18369 | -5/Zhirov | Identified Integrated Dissipator 18369 | -5/Zhirov | Installed Integrated Dissipator, increased core heat dissipation (+20) 18556 | -5/Zhirov | Build established: Hacker-Mutant 18886 | -5/Zhirov | Entered Proximity Caves 19011 | -4/Proximity Caves | Spotter reported a threat 19134 | -4/Proximity Caves | Build established: Hacker-Tank 19140 | -4/Proximity Caves | Spotter reported a threat 19280 | -4/Proximity Caves | Spotter reported a threat 19284 | -4/Proximity Caves | Learned 4 Research zone layouts 19406 | -4/Proximity Caves | Spotter reported a threat 19565 | -4/Proximity Caves | Spotter reported a threat 19799 | -4/Proximity Caves | Attracted the attention of an 0b10 base 19866 | -4/Proximity Caves | Lost 5 parts (1p1n2u1w) 19929 | -4/Proximity Caves | Learned Research trap positions 19929 | -4/Proximity Caves | Learned Extension trap positions 19929 | -4/Proximity Caves | Learned Research stockpile data 19929 | -4/Proximity Caves | Learned Armory stockpile data 19929 | -4/Proximity Caves | Learned Extension terminal intel 19929 | -4/Proximity Caves | Learned Armory terminal intel 19970 | -4/Proximity Caves | Discovered exit to Factory (range 16) 20009 | -4/Proximity Caves | Entered Factory 20009 | -4/Factory | Evolved 2 slots: Utility x2 20010 | -4/Factory | Identified exit to Research 20259 | -4/Factory | Search patrols dispatched 20509 | -4/Factory | Search patrols dispatched 20730 | -4/Factory | Identified exit to Upper Caves 20730 | -4/Factory | Identified exit to Armory 20759 | -4/Factory | First assault squad dispatched 20833 | -4/Factory | System corruption reached 10% 20863 | -4/Factory | Lost 4 parts (4u) 20909 | -4/Factory | Entered Upper Caves 21241 | -4/Upper Caves | Learned Research emergency access door positions 21426 | -4/Upper Caves | Build established: Tank 21671 | -4/Upper Caves | Attacked by a delusional Derelict stockpiling parts 21983 | -4/Upper Caves | Build established: Derelict-Tank 22409 | -4/Upper Caves | Attracted the attention of an 0b10 checkpoint 22458 | -4/Upper Caves | Discovered new exit (range 9) 22476 | -4/Upper Caves | Identified exit to Upper Caves 22500 | -4/Upper Caves | Entered another Upper Caves area 22861 | -4/Upper Caves | Discovered exit to Research (range 10) 23083 | -4/Upper Caves | Learned Research trap positions 23216 | -4/Upper Caves | Discovered new exit (range 14) 23247 | -4/Upper Caves | Identified exit to Warlord 23250 | -4/Upper Caves | Entered Warlord 23363 | -4/Warlord | System corruption cleaned by Quarantine Array 24014 | -4/Warlord | Visited the Vortex Lab 24027 | -4/Warlord | Warlord's base attacked by MAIN.C 24032 | -4/Warlord | Found Prototype Energy Gun 24032 | -4/Warlord | Identified Vortex Rifle 24036 | -4/Warlord | Found Vortex Rifle 24197 | -4/Warlord | Met Warlord 24229 | -4/Warlord | Build established: Scavenger-Mutant 24288 | -4/Warlord | Found Prototype Device 24288 | -4/Warlord | Identified Minesniffer Drone Bay 24377 | -4/Warlord | Warlord forces counterattacked 24521 | -4/Warlord | Found Prototype Ballistic Cannon 24521 | -4/Warlord | Identified Hvy. Autocannon 24637 | -4/Warlord | Lost 7 allies 24673 | -4/Warlord | Spotted Striker 24702 | -4/Warlord | Warlord base infiltrated, sounded retreat 24786 | -4/Warlord | Build established: Scavenger-Tank 24848 | -4/Warlord | Spotted Executioner 24858 | -4/Warlord | Spotted Striker 24874 | -4/Warlord | Self-destructed Last Messages --------------- 24863_ Penetrated by Slug. 24863_ Slug penetrates Striker. 24864_ P-70 Sage heat spikes uncontrollably. 24864_ Slug penetrates Striker. 24864_ Hrd. Heavy Armor Plating destroyed. 24864_ Penetrated by Slug. 24866_ P-70 Sage heat damages core (-11). 24867_ Destroyed Tesla Rifle. 24867_ Unknown Processor melted. 24867_ Unknown Energy Gun melted. 24867_ P-70 Sage destroyed. 24868_ The unstable cave ceiling collapses. 24869_ Penetrated by Slug. 24869_ P-80 Master fails to hack Enhanced Grunt. 24871_ Penetrated by Slug. 24871_ Slug penetrates Striker. 24872_ Hvy. Siege Treads destroyed. 24873_ The unstable cave ceiling collapses. 24873_ Penetrated by Slug. 24874_ Adv. Cooling System destroyed. Map ----- +----------------------------------------------------+ | #????????????????????????????????????????? | | #????????????????????????????????????????? | | #????????????????????????????????????????? | | #????????????????????????????????????????? | | ?????????????????????????????????????????? | | ?????????????????????????????????????????? | | ?????????????????????????????????????????? | | ?????????????????????????????????????????? | | ???????????????????????????????? ????????? | | ???????????????????????????????? ????????? | | ???????????????????????????????? ????????? | | ???????????????????????????????? ????????? | | #????????????????????????????### ???????? | | #????????????????????????##### ???????? | | #???????????????????????? ????????? | | ????????????????????????? """ "????????? | | #????????????????????????? ? [%;###??????? | | #?????""#????????????????#"? = # #??????? | | #????#""#????????????????#"? =% ???????? | | ?????#""#????????????????#"? %==##??????? | | ?????#""#????????????????# # %%%;#?????#? | | ######""#####??????????### # #??? ?? | | #]!*""*%*"############ ## # b=E### #?? | | ]!%!!""!%*[= " # # h[ ; #??? | | [=![!!"![=!!!% ! * % b [== #???? | | !%!%!!=!*|=%!!=%=%= !# @ Kl[= =/! #???? | | !!![=%][%!/[=%=[* = ! % *h=%%% # #??? | | % %=!*%%%%=%%![=%% %!= !p% #? #??? | | %=%%[!%![%[[*%[g*= # s####?? #??? | | ! "%*= %=%=*%] !!= ## [#??? #??? | | " !""!=!!/[[ % ###"%!=;#??? ??? | | # ""!! "#############?##!=###??? ??? | | ######""#####?????????????## !#????? ??? | | #????#""#????????????????## #???? ???? | | #????#""#????????????????# ##???? ???? | | #????#""????????????????## ##????? ???? | | ????????????????????????# #?????? #???? | | ##??????????????????????# #?????? #???? | | #??????????????????????# ##?????? #???? | | #??????????????????????# #??????? ##??? | | #?????????????????????## ##????## #??? | | #????????????????????## ##??## ^ #??? | | #????????????????????# ##?# #??? | | #????????????????##### ^## ### #??? | | #???????????????## # #### ## #??? | | #???????????????# #?## ## #??? | | ?????????????????# #??# ## ##??? | | ?????????????????# ## #?## #???? | | ?????????????????####?# #??### ##???? | | ?????????????????????? ##????######????? | +----------------------------------------------------+ Best States ------------- Heat Dissipation 163 Coolant Potential 100 Energy Generation 28 Energy Capacity 350 Matter Stores 300 Matter Capacity 300 Sight Range 16 Robot Scan Range 16 Terrain Scan Density 10 Power Amplification 30 Corruption Containment 8 Armor Coverage 625 Resistance: KI 25 Resistance: TH 30 Resistance: EM 20 Weapon Cycling 15 Evasion (%) 40 Targeting Accuracy 8 Recoil Reduction 4 Energy Filtering 50 Offensive Hacking 34 Defensive Hacking 12 Item Schematics ----------------- Huge Storage Unit | -10/Materials | Hacked Hpw. Tractor Beam | -9/Materials | Scanalyzed Imp. Medium Treads | -7/Zion | Archive Imp. Salvage Targeting Computer | -7/Zion | Archive Energy Filter | -7/Zion | Archive Fusion Compressor | -7/Zion | Archive Lyr. Light Armor Plating | -7/Zion | Archive Arm. Medium Treads | -7/Zion | Archive Thermal Shield | -7/Zion | Archive Mak. Hammer | -7/Zion | Archive Flexi-carbon Leg | -7/Zion | Archive Mak. Spear | -7/Zion | Archive Hvy. Flak Cannon | -7/Zion | Archive Adv. Assault Cannon | -7/Zion | Archive Adv. Heat Sink | -7/Zion | Archive Flak Gun | -7/Zion | Archive Adv. Trap Extractor | -7/Zion | Archive Imp. Cooling System | -6/Extension | Hacked Imp. Hacking Suite | -6/Extension | Hacked Hvy. Reactive Plating | -5/Factory | Hacked Assault Drone Bay | -5/Zhirov | Free Exp. Heat Sink | -5/Zhirov | Free Exp. Optical Array | -5/Zhirov | Free Imp. Arc Thrower | -5/Zhirov | Free Robot Schematics ------------------ G-47 Trooper | -7/Zion | Archive L-31 Rogue | -7/Zion | Archive O-24 Administrator | -7/Zion | Archive D-83 Annihilator | -7/Zion | Archive Fabricated ------------ Nothing Alien Tech Used ----------------- Integrated Dissipator Achievements -------------- Armchair Analyst Main Advantage The Science Guy Challenges ------------ None Game ------ Seed CooledAutogunNanoactuators Manual? 0 Play Time 03:08:13 Cumulative 60.9 hours Start 2024.06.14 @ 02:26:28 End 2024.06.14 @ 15:18:23 Sessions 3 Manual Loads 0 Difficulty Rogue Special Mode None Game No. 31 Rogue 31 Adventurer 0 Explorer 0 Win Type - Total 1 Types 1/0/0/0/0/0/0/0/0 Lore% 39 Gallery% 49 Achievement% 41 Wizard Run 0 Options --------- Layout 0 ASCII 0 Keyboard 1 Movement Numpad Keybinds 0 Fullscreen 1 Font 18/SmallcapsGlow Map View 76x50 Zoom Use 0% Tactical HUD 1 Map Filters NONE Filters NONE Steam 1 RUN: 3ec8ac27-30ed-4599-915e-663664e244de